Cogmind - Beta 16 @@@ ROGUE MODE // 2025.11.04 @ 20:06:49 Player: ChromeKnight Result: Destroyed by as-82614 with Assembled Maul Performance ------------- Evolutions (0) 0 Regions Visited (2) 400 Robots Destroyed (10) 50 Value Destroyed (140) 140 Prototype IDs (0) 0 Alien Tech Used (0) 0 Bonus (0) 0 TOTAL SCORE: 590 Bonus ------- None Cogmind --------- Core Integrity 0/250 Matter 263/300 Energy 78/100 System Corruption 3% Temperature Critical (583) Movement Core (150) Ox2 Location -10/Mines Parts ------- > --- POWER (1) -------- (None) > --- PROPULSION (2) --- (None) > --- UTILITY (2) ------ Small Storage Unit > --- WEAPON (2) ------- Particle Gun > --- INVENTORY (8) ---- Ion Engine Light Nuclear Core Experimental Sensor Array Light Armor Plating Grenade Launcher Peak State ------------ > --- POWER ------------ Ion Engine > --- PROPULSION ------- Light Treads Light Treads > --- UTILITY ---------- Small Storage Unit Targeting Computer > --- WEAPON ----------- Medium Laser Small Laser > --- INVENTORY -------- Light Nuclear Core Experimental Sensor Array Particle Gun Grenade Launcher [Rating: 8] Favorites ----------- Power Ion Engine Engine Ion Engine Propulsion Light Treads Treads Light Treads Utility Small Storage Unit Storage Small Storage Unit Processor Targeting Computer Weapon Small Laser Energy Gun Small Laser Build | -11 -10 -10 ------- Run | Yrd Mat Min Slots Evolved . | . . . Power . | . . . Propulsion . | . . . Utility . | . . . Weapon . | . . . Parts Attached 9 | 6 1 2 Power 2 | 1 . 1 Engine 2 | 1 . 1 Core . | . . . Reactor . | . . . Propulsion 2 | 2 . . Treads 2 | 2 . . Leg . | . . . Wheel . | . . . Hover . | . . . Flight . | . . . Utility 2 | 1 1 . Device . | . . . Storage 1 | 1 . . Processor 1 | . 1 . Hackware . | . . . Protection . | . . . Artifact . | . . . Weapon 3 | 2 . 1 Energy Gun 3 | 2 . 1 Energy Cannon . | . . . Ballistic Gun . | . . . Ballistic Cannon . | . . . Launcher . | . . . Special Weapon . | . . . Impact Weapon . | . . . Slashing Weapon . | . . . Piercing Weapon . | . . . Special Melee Weapon . | . . . Unidentified Prototypes . | . . . Parts Lost 6 | . . 6 Power 1 | . . 1 Propulsion 2 | . . 2 Utility 1 | . . 1 Weapon 2 | . . 2 Highest Loss Streak 4 | . . 4 To Critical Strikes . | . . . Average Backups 3 | . . 4 Power . | . . 1 Propulsion . | . . . Utility . | . . 1 Weapon 1 | . . 1 Tool/Special . | . . . Unused Backups 4 | . . 4 Power 1 | . . 1 Propulsion . | . . . Utility 2 | . . 2 Weapon 1 | . . 1 Tool/Special . | . . . Average Slot Usage (%) 96 | . 92 97 Engine 14 | . 14 14 Treads 26 | . 28 25 Storage 14 | . 14 14 Processor 12 | . 7 14 Energy Gun 27 | . 28 27 Peak Build Rating 8 | 6 7 8 Average Rating 7 | 4 6 7 On Entrance 4 | . 6 7 Avg Prop Armor Cover (%) 15 | . . 15 Naked Turns . | . . . Heaviest Build 13 | 13 13 13 Greatest Support 40 | 40 40 40 Greatest Overweight (x) 3 | . . 3 Average Overweight (x) . | . . . Largest Inventory Capacity 8 | 8 8 8 Average Capacity 7 | 7 8 8 Most Carried 6 | . 1 6 Average Carried 3 | . . 4 Final Capacity 8 | 8 8 8 Final Carried 5 | . 1 5 Class Distribution -------------------- 100% | Mutant Dominant Class ---------------- Mutant | -10/Materials Mutant | -10/Mines Resources | -11 -10 -10 ----------- Run | Yrd Mat Min Matter Collected 316 | 173 93 50 Remotely . | . . . Salvage Created 436 | . 93 343 Parts 11 | . 4 7 Haulers Intercepted 1 | . 1 . Recyclers Shooed 1 | . 1 . Parts Field Recycled . | . . . Retrieved Matter . | . . . Parts Self-Destructed . | . . . Prevented . | . . . Parts Restored . | . . . Kills | -11 -10 -10 ------- Run | Yrd Mat Min Combat Hostiles Destroyed 18 | . 2 16 Guns 18 | . 2 16 Classes Destroyed 6 | . 3 3 Worker 1 | . 1 . Hauler 1 | . 1 . Recycler 1 | . . 1 Swarmer 5 | . 2 3 Grunt 2 | . . 2 Assembled 11 | . . 11 Best Kill Streak 4 | . 4 4 Combat Bots Only 4 | . 2 4 Max Kills in Single Turn 1 | . 1 1 Gunslinging . | . . . Exploded . | . . . Melee . | . . . Uniques/NPCs Destroyed . | . . . Combat | -11 -10 -10 -------- Run | Yrd Mat Min Hostile Shots Fired 67 | . 5 62 Missed 10 | . 1 9 Hits 57 | . 4 53 Melee 10 | . . 10 Projectile 47 | . 4 43 Critical Strikes 1 | . . 1 Part Disruptions 2 | . . 2 Damage Taken 890 | . 43 847 Core 257 | . 11 246 Absorbed by Shields . | . . . Core Remaining (%) 100 | 100 . . Volleys Fired 58 | . 8 50 Largest 2 | . 2 2 Hottest 105 | . 90 105 Shots Fired 112 | . 16 96 Gun 112 | . 16 96 Cannon . | . . . Launcher . | . . . Special . | . . . Kinetic . | . . . Thermal 112 | . 16 96 Explosive . | . . . Electromagnetic . | . . . Robot Hit Streak 10 | . 7 10 Robot Miss Streak 5 | . 2 5 Penetration Max . | . . . Secondary Targets 1 | . . 1 Max Gunslinging Chain 1 | . . 1 Shots Hit Robots 70 | . 11 59 Core Hits 39 | . 5 34 Critical Kills . | . . . Critical Parts Destroyed . | . . . Critical Strikes 4 | . 1 3 Burn 4 | . 1 3 Melee Attacks . | . . . Impact . | . . . Slashing . | . . . Piercing . | . . . Sneak Attacks . | . . . Combat Hostiles . | . . . Follow-up Attacks . | . . . Damage Inflicted 889 | . 130 759 Guns 889 | . 130 759 Cannons . | . . . Explosions . | . . . Melee . | . . . Ramming . | . . . Kinetic . | . . . Thermal 889 | . 130 759 Explosive . | . . . Electromagnetic . | . . . Impact . | . . . Slashing . | . . . Piercing . | . . . Highest Corruption . | . . . Average Corruption . | . . . Corruption Purged . | . . . Corruption Blocked . | . . . Overload Shots . | . . . Overflow Damage . | . . . Projectiles . | . . . Explosions . | . . . Melee . | . . . Knockbacks . | . . . Impact . | . . . Kinetic . | . . . Secondary . | . . . Self-Inflicted Damage . | . . . Shots . | . . . Rammed . | . . . Targets Rammed . | . . . Kicked . | . . . Crushed . | . . . Highest Temperature 583 | . 120 583 Average Temperature 160 | . 61 178 Received Heat Transfer 288 | . 12 276 Effects 9 | . . 9 Shutdowns 2 | . . 2 Energy Bleed 3 | . . 3 Interference 1 | . . 1 Matter Decay 1 | . . 1 Damage (minor) 1 | . . 1 Damage (core) 1 | . . 1 Siege Activations . | . . . Martial Activations . | . . . Shielding Activations . | . . . Robots Disrupted . | . . . Combat Hostiles . | . . . Robots Corrupted . | . . . Combat Hostiles . | . . . Parts Fried . | . . . Impact Corruptions . | . . . Robots Melted . | . . . Combat Hostiles . | . . . Parts Melted 4 | . . 4 Heat Transferred 2613 | . 421 2192 Parts Sabotaged . | . . . Parts Stolen . | . . . Parts Stripped . | . . . Power Chain Reactions . | . . . Alert | -11 -10 -10 ------- Run | Yrd Mat Min Maximum Alert Level . | . . . Low Security (%) 100 | 100 100 100 Level 1 . | . . . Level 2 . | . . . Level 3 . | . . . Level 4 . | . . . Level 5 . | . . . High Security . | . . . Max Security . | . . . Peak Influence 80 | . 57 80 Initial 6 | . . 6 Average 13 | . 16 13 Influence Increases 207 | . 67 140 Destroy 0b10 Robot/C 140 | . 40 100 Destroy 0b10 Robot/NC 15 | . 10 5 Destroy Leader 22 | . 2 20 Lose Combat Pursuer 30 | . 15 15 Influence Decreases 207 | . 50 157 Entered New Map 11 | . . 11 Time Decay 196 | . 50 146 Squads Dispatched 1 | . 1 . Investigation 1 | . 1 . Extermination . | . . . Reinforcement . | . . . Assault . | . . . Garrison . | . . . Intercept . | . . . Searches Triggered . | . . . Construction Impeded . | . . . Haulers Reinforced . | . . . Active Scanning Responses . | . . . Cargo Convoy Interrupts . | . . . Stealth | -11 -10 -10 --------- Run | Yrd Mat Min Distress Signals 1 | . 1 . Communications Jammed . | . . . Distress Signals . | . . . Times Spotted 26 | . 4 22 Peak Tracking Total 4 | . 2 4 Tactical Retreats 4 | . 1 3 Traps | -11 -10 -10 ------- Run | Yrd Mat Min Traps Triggered . | . . . Indirectly . | . . . Trap Hack Attempts . | . . . Triggered . | . . . Disarmed . | . . . Reprogrammed . | . . . Reused . | . . . Traps Extracted . | . . . Installed . | . . . Triggered . | . . . Machines | -11 -10 -10 ---------- Run | Yrd Mat Min Machines Disabled . | . . . Max in Single Turn . | . . . Machines Repaired . | . . . Machines Dismantled . | . . . Machines Sabotaged . | . . . Overloaded Fab Kills . | . . . Hacking | -11 -10 -10 --------- Run | Yrd Mat Min Machines Accessed 2 | . 2 . Terminals 2 | . 2 . Fabricators . | . . . Repair Stations . | . . . Recycling Units . | . . . Scanalyzers . | . . . Garrison Access . | . . . Total Hacks 7 | . 7 . Successful . | . . . Failed 7 | . 7 . Catastrophic 4 | . 4 . Database Lockouts . | . . . Manual 4 | . 4 . Terminals 7 | . 7 . Fabricators . | . . . Repair Stations . | . . . Recycling Units . | . . . Scanalyzers . | . . . Garrison Access . | . . . Terminal Hacks . | . . . Fabricator Hacks . | . . . Repair Station Hacks . | . . . Recycling Unit Hacks . | . . . Scanalyzer . | . . . Garrison Access Hacks . | . . . Unauthorized Hacks . | . . . Terminals . | . . . Fabricators . | . . . Repair Stations . | . . . Recycling Units . | . . . Scanalyzers . | . . . Garrison Access . | . . . Data Cores Recovered . | . . . Used . | . . . Hacking Detections 2 | . 2 . Full Trace Events 1 | . 1 . Feedback Events . | . . . Feedback Blocked . | . . . Robot Schematics Acquired . | . . . Robots Built . | . . . Authchips . | . . . Time . | . . . Total Robot Build Rating . | . . . Part Schematics Acquired . | . . . Parts Built . | . . . Authchips . | . . . Time . | . . . Total Part Build Rating . | . . . Part Studies Acquired . | . . . Parts Repaired . | . . . Time . | . . . Parts Recycled . | . . . Recycled Matter . | . . . Retrieved Matter . | . . . Retrieved Components . | . . . Parts Scanalyzed . | . . . Part Schematics Acquired . | . . . Parts Damaged . | . . . Bothacking | -11 -10 -10 ------------ Run | Yrd Mat Min Used RIF Installer . | . . . Robots Hacked . | . . . Non-combat . | . . . Combat . | . . . Robot Hacks Applied . | . . . Relay Couplers Released . | . . . Fabnet Peak Effective % . | . . . Robots Rewired . | . . . Allies Hacked . | . . . Hacks Repelled . | . . . Allies | -11 -10 -10 -------- Run | Yrd Mat Min Total Allies . | . . . Largest Group . | . . . Highest-Rated Group . | . . . Highest-Rated Ally . | . . . Total Orders . | . . . Ally Attacks . | . . . Total Damage . | . . . Kills . | . . . Allies Corrupted . | . . . Allies Melted . | . . . Intel | -11 -10 -10 ------- Run | Yrd Mat Min Active Infowar (turns) . | . . . Robot Analysis Total . | . . . Derelict Logs Recovered 1 | . . 1 Drone Launches . | . . . Drone Recoveries . | . . . Exploration | -11 -10 -10 ------------- Run | Yrd Mat Min Turns Passed 932 | 68 197 667 Spaces Moved 459 | 43 107 309 Core 10 | 8 . 2 Treads 449 | 35 107 307 Legs . | . . . Wheels . | . . . Hover . | . . . Flight . | . . . Fastest Speed 50 | 50 160 160 Average Speed 158 | 139 160 160 Slowest Speed 200 | 160 160 200 Overloaded Moves . | . . . Propulsion Burnouts . | . . . Robots Hopped . | . . . Potential Cave-ins . | . . . Cave-ins Triggered . | . . . Exploration Rate (%) 29 | 4 27 58 Regions Visited 2 Branch Regions 1 Pre-discovered Areas 1 | . . 1 Known Exits Taken . | . . . Unknown Exits Taken 2 | 1 1 . Scrap Searched 1 | . . 1 Spaces Dug . | . . . Terrain Destroyed . | . . . Melee . | . . . Projectile . | . . . AOE . | . . . Terrain Rammed . | . . . Walls Destroyed . | . . . Machines Disabled . | . . . Actions | -11 -10 -10 --------- Run | Yrd Mat Min Total 548 | 48 116 384 Wait 18 | . . 18 Move 457 | 42 106 309 Hop . | . . . Pick Up 5 | . 1 4 Fast Attach 8 | 6 1 1 Attach 1 | . . 1 Detach . | . . . Swap 1 | . . 1 Drop . | . . . Fire 58 | . 8 50 Melee . | . . . Ram . | . . . Kick . | . . . Crush . | . . . Escape Stasis . | . . . Rewire . | . . . Trap . | . . . Miscellaneous . | . . . Route ------- -11/Scrapyard -10/Materials -10/Mines (discovered 2 exits: [*Mat x2]) History --------- Turn | Location | Event 3 | -11/Scrapyard | Discovered new exit (range 15) 69 | -11/Scrapyard | Entered Materials 235 | -10/Materials | Discovered new exit (range 16) 266 | -10/Materials | Entered Mines 290 | -10/Mines | Discovered new exit (range 7) 302 | -10/Mines | Build established: Mutant 361 | -10/Mines | Learned location of Zion (-6) 526 | -10/Mines | Found a damaged Exp. Sensor Array with a note attached 529 | -10/Mines | Found Prototype Device 576 | -10/Mines | Discovered new exit (range 8) 756 | -10/Mines | Assembled infested the area 761 | -10/Mines | Assisted by a Guerilla fighting off Assembled 809 | -10/Mines | Core integrity fell below 50% 928 | -10/Mines | Core integrity fell below 20% 933 | -10/Mines | Destroyed by as-82614 with Assembled Maul Last Messages --------------- 00904_ as-51308 suffers critical hit (Burn). 00906_ as-51308 heat short circuits Asb. Hover Unit. 00916_ as-86420 destroyed. 00919_ as-21296 destroyed. 00921_ Power failure, Lgt. Ion Engine shutdown. 00924_ Overheating: Lgt. Treads damaged (-7). 00926_ Lgt. Treads destroyed. 00927_ Sml. Laser destroyed. 00928_ Overheating: Core damaged (-27). 00928_ as-51028 destroyed. 00929_ Overheating: Matter decay (-63). 00929_ Acquired 16 matter. 00930_ Power failure, Lgt. Ion Engine shutdown. 00931_ Overheating: System interference. 00931_ Targeting Computer temporarily disabled. 00931_ Lgt. Ion Engine destroyed. 00933_ Overheating: Energy bleed (-17). 00933_ Targeting Computer destroyed. 00933_ System corrupted by crushing effect (+3). Map ----- +----------------------------------------------------+ | ???????????????????????# ########### | | ???????????????????????# #?????????? | | ???????????????????????# #?????????? | | ???????????????????????# #?????????? | | ???????????????????????# #?????????? | | ???????????????????????# #?????????? | | ???????????????????????# #?????????? | | ???????????????????????# #?????????? | | ??????????????????????## ##????????? | | ??????????????????????# ####?????? | | ??????????????????????# ##????? | | ??????????????????????## ##???? | | ???????????????????????# ##??? | | ???????????????????????## #??? | | ????????????????????????# ### #?? | | ????????????????????????# #??# #? | | ????????????????????????# #??? #? | | ????????????????????????# #???? ##? | | ????????????????????????# ### ##?? | | ????????????????????????# ##??? | | ??#?????????????????????# ## #???? | | ??# ???????????????##### #?# #???? | | ??# ????????????## #??# ##???? | | ???# ??????????# ###???##????? | | ?????# a<####????# #???????????? | | ??????# a@ ####?## ##??????????? | | ??????## % %% #### #??????????? | | ???????#### a %=%=% #??????????? | | ??????????## ###### ##??????????? | | ???????????######????####???????????? | | ????????????????????????????????????? | | ????????????????????????????????????? | | | | | | | | | | | | | | | | | | | | | | | | | | | | | | | | | | | | | +----------------------------------------------------+ Best States ------------- Heat Dissipation 25 Energy Generation 10 Energy Capacity 250 Matter Stores 300 Matter Capacity 300 Sight Range 16 Terrain Scan Density 10 Evasion (%) 40 Targeting Accuracy 5 Recoil Reduction 2 Item Schematics ----------------- None Robot Schematics ------------------ None Fabricated ------------ Nothing Repaired ---------- Nothing Studied --------- None Alien Tech Used ----------------- None Achievements -------------- None Challenges ------------ None Game ------ Seed SubatomicDecoderStatue Manual? 0 Play Time 00:07:10 Cumulative 504.9 hours Start 2025.11.04 @ 19:41:43 End 2025.11.04 @ 20:06:49 Sessions 1 Manual Loads 0 Difficulty Rogue Special Mode None Game No. 839 Rogue 684 Adventurer 148 Explorer 7 Win Type - Total 24 Types 19/1/3/1/0/0/0/0/0/0 Lore% 74 Gallery% 78 Achievement% 61 Wizard Run 0 Options --------- Layout 1 ASCII 0 Keyboard 0 Movement Numpad Keybinds 0 Fullscreen 2 Font 24/Smallcaps Map View 50x40 Zoom Use 0% Tactical HUD 1 Map Filters NONE Filters NONE Steam 1 RUN: 85f9b72a-e3d6-4057-a029-1cc36c8225a1